[Event "Titled Tuesday Blitz May 31 Late 2022"]
[White "Shimanov, Aleksandr"]
[Black "Dubov, Daniil"]
[WhiteFideId "4198603"]
[BlackFideId "24126055"]
[WhiteElo "2605"]
[BlackElo "2791"]
[Result "1-0"]
[Round "04"]
[TimeControl "180+1"]
[Date "2022.05.31"]
[WhiteClock "0:00:22"]
[BlackClock "0:00:03"]

1. e4 {[%clk 0:03:00]}  e5 {[%clk 0:02:58]} 2. Nf3 {[%clk 0:02:59]}  Nc6 {[%clk 0:02:58]} 3. Nc3 {[%clk 0:03:00]}  Nf6 {[%clk 0:02:57]} 4. h3 {[%clk 0:03:01]}  d5 {[%clk 0:02:47]} 5. exd5 {[%clk 0:03:01]}  Nxd5 {[%clk 0:02:48]} 6. Bb5 {[%clk 0:03:01]}  Nxc3 {[%clk 0:02:46]} 7. bxc3 {[%clk 0:03:02]}  Bd6 {[%clk 0:02:46]} 8. O-O {[%clk 0:03:02]}  O-O {[%clk 0:02:45]} 9. Re1 {[%clk 0:03:02]}  Qf6 {[%clk 0:02:42]} 10. d4 {[%clk 0:03:01]}  exd4 {[%clk 0:02:41]} 11. cxd4 {[%clk 0:03:02]}  h6 {[%clk 0:02:40]} 12. Bb2 {[%clk 0:02:57]}  Bf5 {[%clk 0:02:29]} 13. c4 {[%clk 0:02:29]}  Rad8 {[%clk 0:02:14]} 14. Qb3 {[%clk 0:02:14]}  Na5 {[%clk 0:02:08]} 15. Qc3 {[%clk 0:02:13]}  a6 {[%clk 0:01:36]} 16. c5 {[%clk 0:01:48]}  Bf4 {[%clk 0:01:18]} 17. Bf1 {[%clk 0:01:32]}  Nc6 {[%clk 0:01:14]} 18. Qb3 {[%clk 0:01:26]}  Be6 {[%clk 0:01:11]} 19. d5 {[%clk 0:01:08]}  Bxd5 {[%clk 0:01:09]} 20. Bxf6 {[%clk 0:01:07]}  Bxb3 {[%clk 0:01:09]} 21. Bxd8 {[%clk 0:01:07]}  Bd5 {[%clk 0:01:06]} 22. Bh4 {[%clk 0:01:05]}  Bxf3 {[%clk 0:01:00]} 23. gxf3 {[%clk 0:01:05]}  Nd4 {[%clk 0:01:01]} 24. Re4 {[%clk 0:00:49]}  Nxf3+ {[%clk 0:01:00]} 25. Kh1 {[%clk 0:00:49]}  Be5 {[%clk 0:00:45]} 26. Rd1 {[%clk 0:00:48]}  f5 {[%clk 0:00:27]} 27. Re2 {[%clk 0:00:48]}  g5 {[%clk 0:00:09]} 28. Bg2 {[%clk 0:00:47]}  Nxh4 {[%clk 0:00:05]} 29. Rxe5 {[%clk 0:00:46]}  c6 {[%clk 0:00:05]} 30. Rd7 {[%clk 0:00:45]}  Rf7 {[%clk 0:00:05]} 31. Re8+ {[%clk 0:00:43]}  Kg7 {[%clk 0:00:05]} 32. Ree7 {[%clk 0:00:43]}  Rxe7 {[%clk 0:00:05]} 33. Rxe7+ {[%clk 0:00:44]}  Kf6 {[%clk 0:00:06]} 34. Rxb7 {[%clk 0:00:44]}  Ke5 {[%clk 0:00:07]} 35. Bxc6 {[%clk 0:00:44]}  Kd4 {[%clk 0:00:07]} 36. Rb6 {[%clk 0:00:41]}  Kxc5 {[%clk 0:00:07]} 37. Rxa6 {[%clk 0:00:41]}  h5 {[%clk 0:00:06]} 38. Bb7 {[%clk 0:00:38]}  g4 {[%clk 0:00:06]} 39. hxg4 {[%clk 0:00:37]}  hxg4 {[%clk 0:00:07]} 40. Bc8 {[%clk 0:00:29]}  Kd4 {[%clk 0:00:05]} 41. Rh6 {[%clk 0:00:24]}  Nf3 {[%clk 0:00:05]} 42. Bxf5 {[%clk 0:00:24]}  Ne5 {[%clk 0:00:06]} 43. Bxg4 {[%clk 0:00:23]}  Nd3 {[%clk 0:00:03]} 44. Kg2 {[%clk 0:00:22]}  Nf4+ {[%clk 0:00:03]} 45. Kg3 {[%clk 0:00:22]}  Nd3 {[%clk 0:00:03]} 46. Rd6+ {[%clk 0:00:22]} 1-0


[Site "https://www.chess.com"]

[Event "Titled Tuesday Blitz May 31 Late 2022"]
[White "Sjugirov, Sanan"]
[Black "Harvey, Marcus R"]
[WhiteFideId "4189302"]
[BlackFideId "400092"]
[WhiteElo "2602"]
[BlackElo "2485"]
[Result "1-0"]
[Round "04"]
[TimeControl "180+1"]
[Date "2022.05.31"]
[WhiteClock "0:00:05"]
[BlackClock "0:00:16"]

1. e4 {[%clk 0:03:00]}  e6 {[%clk 0:03:00]} 2. d4 {[%clk 0:03:00]}  d5 {[%clk 0:03:00]} 3. e5 {[%clk 0:03:01]}  c5 {[%clk 0:03:00]} 4. c3 {[%clk 0:03:02]}  Qb6 {[%clk 0:03:01]} 5. Nf3 {[%clk 0:03:02]}  Nc6 {[%clk 0:03:01]} 6. a3 {[%clk 0:03:02]}  c4 {[%clk 0:03:01]} 7. Nbd2 {[%clk 0:03:02]}  Na5 {[%clk 0:03:02]} 8. Be2 {[%clk 0:03:00]}  Bd7 {[%clk 0:03:02]} 9. Rb1 {[%clk 0:02:58]}  Qc7 {[%clk 0:03:01]} 10. h4 {[%clk 0:02:56]}  h6 {[%clk 0:03:01]} 11. h5 {[%clk 0:02:55]}  Ne7 {[%clk 0:03:01]} 12. Nf1 {[%clk 0:02:50]}  Nb3 {[%clk 0:03:00]} 13. Bf4 {[%clk 0:02:49]}  Ba4 {[%clk 0:02:59]} 14. N1d2 {[%clk 0:02:02]}  Nc5 {[%clk 0:02:46]} 15. Qc1 {[%clk 0:02:02]}  Nd3+ {[%clk 0:02:45]} 16. Bxd3 {[%clk 0:02:02]}  cxd3 {[%clk 0:02:46]} 17. O-O {[%clk 0:02:02]}  Bb5 {[%clk 0:02:34]} 18. Qd1 {[%clk 0:01:56]}  a5 {[%clk 0:02:32]} 19. Ne1 {[%clk 0:01:53]}  f5 {[%clk 0:02:17]} 20. Qf3 {[%clk 0:01:48]}  g5 {[%clk 0:02:17]} 21. hxg6 {[%clk 0:01:47]}  Nxg6 {[%clk 0:02:17]} 22. Bh2 {[%clk 0:01:42]}  Rg8 {[%clk 0:02:13]} 23. Kh1 {[%clk 0:01:26]}  Qc6 {[%clk 0:01:35]} 24. Rg1 {[%clk 0:01:19]}  Qa6 {[%clk 0:01:29]} 25. Rd1 {[%clk 0:01:08]}  a4 {[%clk 0:01:15]} 26. Nf1 {[%clk 0:01:07]}  d2 {[%clk 0:01:07]} 27. Ng3 {[%clk 0:00:41]}  dxe1=Q {[%clk 0:01:04]} 28. Rdxe1 {[%clk 0:00:42]}  O-O-O {[%clk 0:01:00]} 29. Nh5 {[%clk 0:00:41]}  Be7 {[%clk 0:01:01]} 30. Qe3 {[%clk 0:00:41]}  Bg5 {[%clk 0:00:59]} 31. Qh3 {[%clk 0:00:39]}  Be2 {[%clk 0:00:50]} 32. Nf6 {[%clk 0:00:39]}  Bxf6 {[%clk 0:00:45]} 33. exf6 {[%clk 0:00:40]}  Qd3 {[%clk 0:00:43]} 34. Qxd3 {[%clk 0:00:38]}  Bxd3 {[%clk 0:00:44]} 35. Rxe6 {[%clk 0:00:39]}  Rge8 {[%clk 0:00:30]} 36. Rge1 {[%clk 0:00:36]}  Rxe6 {[%clk 0:00:22]} 37. Rxe6 {[%clk 0:00:37]}  Nf8 {[%clk 0:00:21]} 38. Re7 {[%clk 0:00:36]}  Rd7 {[%clk 0:00:19]} 39. Re8+ {[%clk 0:00:36]}  Rd8 {[%clk 0:00:19]} 40. Re7 {[%clk 0:00:37]}  Rd7 {[%clk 0:00:17]} 41. Re3 {[%clk 0:00:34]}  Bb5 {[%clk 0:00:15]} 42. Re5 {[%clk 0:00:28]}  Bd3 {[%clk 0:00:08]} 43. f3 {[%clk 0:00:24]}  Rf7 {[%clk 0:00:07]} 44. Rxd5 {[%clk 0:00:18]}  Rxf6 {[%clk 0:00:06]} 45. Ra5 {[%clk 0:00:17]}  b6 {[%clk 0:00:05]} 46. Ra8+ {[%clk 0:00:16]}  Kb7 {[%clk 0:00:05]} 47. Rb8+ {[%clk 0:00:17]}  Kc6 {[%clk 0:00:06]} 48. Kg1 {[%clk 0:00:10]}  Nd7 {[%clk 0:00:06]} 49. Rd8 {[%clk 0:00:10]}  Rf7 {[%clk 0:00:05]} 50. Kf2 {[%clk 0:00:10]}  f4 {[%clk 0:00:06]} 51. Rh8 {[%clk 0:00:09]}  Rf6 {[%clk 0:00:05]} 52. Re8 {[%clk 0:00:08]}  Kb5 {[%clk 0:00:04]} 53. Rc8 {[%clk 0:00:08]}  Bc4 {[%clk 0:00:03]} 54. Re8 {[%clk 0:00:07]}  Bd5 {[%clk 0:00:03]} 55. Rd8 {[%clk 0:00:07]}  Bc6 {[%clk 0:00:03]} 56. d5 {[%clk 0:00:07]}  Bxd5 {[%clk 0:00:04]} 57. Rxd7 {[%clk 0:00:07]}  Kc4 {[%clk 0:00:05]} 58. Bg1 {[%clk 0:00:05]}  b5 {[%clk 0:00:05]} 59. Ke1 {[%clk 0:00:05]}  Re6+ {[%clk 0:00:05]} 60. Kd2 {[%clk 0:00:05]}  Bc6 {[%clk 0:00:06]} 61. Rd4+ {[%clk 0:00:05]}  Kb3 {[%clk 0:00:06]} 62. Rb4+ {[%clk 0:00:06]}  Ka2 {[%clk 0:00:07]} 63. Bc5 {[%clk 0:00:05]}  Bd5 {[%clk 0:00:07]} 64. Rxb5 {[%clk 0:00:04]}  Bc4 {[%clk 0:00:07]} 65. Rb4 {[%clk 0:00:05]}  Re2+ {[%clk 0:00:05]} 66. Kd1 {[%clk 0:00:05]}  Ba6 {[%clk 0:00:05]} 67. Rxa4 {[%clk 0:00:05]}  Bb5 {[%clk 0:00:05]} 68. Rb4 {[%clk 0:00:05]}  Ba6 {[%clk 0:00:06]} 69. Rxf4 {[%clk 0:00:05]}  Rxg2 {[%clk 0:00:06]} 70. b4 {[%clk 0:00:04]}  Kxa3 {[%clk 0:00:05]} 71. c4 {[%clk 0:00:03]}  Kb3 {[%clk 0:00:06]} 72. b5 {[%clk 0:00:03]}  Bc8 {[%clk 0:00:06]} 73. Be3 {[%clk 0:00:03]}  Kc3 {[%clk 0:00:06]} 74. c5 {[%clk 0:00:03]}  Kd3 {[%clk 0:00:07]} 75. Bd4 {[%clk 0:00:03]}  Be6 {[%clk 0:00:07]} 76. Kc1 {[%clk 0:00:03]}  Bb3 {[%clk 0:00:07]} 77. Be3 {[%clk 0:00:02]}  Rc2+ {[%clk 0:00:07]} 78. Kb1 {[%clk 0:00:02]}  Kxe3 {[%clk 0:00:08]} 79. Rb4 {[%clk 0:00:02]}  Rxc5 {[%clk 0:00:08]} 80. Rxb3+ {[%clk 0:00:02]}  Kf4 {[%clk 0:00:08]} 81. b6 {[%clk 0:00:03]}  Rc8 {[%clk 0:00:09]} 82. b7 {[%clk 0:00:02]}  Rb8 {[%clk 0:00:09]} 83. Kc2 {[%clk 0:00:03]}  h5 {[%clk 0:00:10]} 84. Kd2 {[%clk 0:00:04]}  h4 {[%clk 0:00:10]} 85. Ke2 {[%clk 0:00:04]}  Kg3 {[%clk 0:00:11]} 86. Kf1 {[%clk 0:00:02]}  h3 {[%clk 0:00:11]} 87. Kg1 {[%clk 0:00:02]}  h2+ {[%clk 0:00:12]} 88. Kh1 {[%clk 0:00:03]}  Kh3 {[%clk 0:00:10]} 89. Rb4 {[%clk 0:00:02]}  Rd8 {[%clk 0:00:08]} 90. Rb1 {[%clk 0:00:02]}  Rb8 {[%clk 0:00:08]} 91. f4 {[%clk 0:00:02]}  Kg4 {[%clk 0:00:08]} 92. Rb4 {[%clk 0:00:02]}  Kf5 {[%clk 0:00:08]} 93. Kxh2 {[%clk 0:00:02]}  Ke6 {[%clk 0:00:09]} 94. Kg3 {[%clk 0:00:03]}  Kd5 {[%clk 0:00:10]} 95. Kg4 {[%clk 0:00:03]}  Kc5 {[%clk 0:00:11]} 96. Rb1 {[%clk 0:00:03]}  Kc6 {[%clk 0:00:12]} 97. f5 {[%clk 0:00:04]}  Kc7 {[%clk 0:00:13]} 98. Kg5 {[%clk 0:00:04]}  Rg8+ {[%clk 0:00:13]} 99. Kf4 {[%clk 0:00:04]}  Kb8 {[%clk 0:00:14]} 100. f6 {[%clk 0:00:04]}  Rg1 {[%clk 0:00:15]} 101. Rxg1 {[%clk 0:00:04]}  Kxb7 {[%clk 0:00:16]} 102. f7 {[%clk 0:00:05]} 1-0


[Site "https://www.chess.com"]

[Event "Titled Tuesday Blitz May 31 Late 2022"]
[White "Souleidis, Georgios"]
[Black "Vasquez Schroeder, Rodrigo"]
[WhiteFideId "4206827"]
[BlackFideId "3400042"]
[WhiteElo "2401"]
[BlackElo "2567"]
[Result "0-1"]
[Round "04"]
[TimeControl "180+1"]
[Date "2022.05.31"]
[WhiteClock "0:00:07"]
[BlackClock "0:01:15"]

1. e4 {[%clk 0:02:58]}  c5 {[%clk 0:02:59]} 2. Be2 {[%clk 0:02:58]}  Nf6 {[%clk 0:02:55]} 3. d3 {[%clk 0:02:58]}  Nc6 {[%clk 0:02:54]} 4. f4 {[%clk 0:02:58]}  d6 {[%clk 0:02:54]} 5. Nf3 {[%clk 0:02:58]}  g6 {[%clk 0:02:54]} 6. O-O {[%clk 0:02:58]}  Bg7 {[%clk 0:02:55]} 7. c3 {[%clk 0:02:59]}  O-O {[%clk 0:02:54]} 8. Kh1 {[%clk 0:03:00]}  b6 {[%clk 0:02:52]} 9. Be3 {[%clk 0:03:00]}  Bb7 {[%clk 0:02:48]} 10. Nbd2 {[%clk 0:02:59]}  Rc8 {[%clk 0:02:47]} 11. a3 {[%clk 0:02:59]}  e6 {[%clk 0:02:47]} 12. d4 {[%clk 0:02:57]}  cxd4 {[%clk 0:02:41]} 13. cxd4 {[%clk 0:02:58]}  Ne7 {[%clk 0:02:41]} 14. Bd3 {[%clk 0:02:54]}  d5 {[%clk 0:02:40]} 15. e5 {[%clk 0:02:53]}  Ne4 {[%clk 0:02:40]} 16. Qe2 {[%clk 0:02:15]}  Nf5 {[%clk 0:02:40]} 17. Bf2 {[%clk 0:02:06]}  Nxf2+ {[%clk 0:02:34]} 18. Qxf2 {[%clk 0:02:03]}  h5 {[%clk 0:02:33]} 19. Rac1 {[%clk 0:02:00]}  Rxc1 {[%clk 0:02:32]} 20. Rxc1 {[%clk 0:02:00]}  Qd7 {[%clk 0:02:32]} 21. Qe1 {[%clk 0:01:27]}  Rc8 {[%clk 0:02:30]} 22. Qd1 {[%clk 0:01:22]}  Ne3 {[%clk 0:02:25]} 23. Qe1 {[%clk 0:01:20]}  Ng4 {[%clk 0:02:25]} 24. Kg1 {[%clk 0:01:14]}  Bf8 {[%clk 0:02:14]} 25. h3 {[%clk 0:01:13]}  Nh6 {[%clk 0:02:14]} 26. Nf1 {[%clk 0:01:05]}  Be7 {[%clk 0:02:04]} 27. Ne3 {[%clk 0:01:02]}  Rc7 {[%clk 0:01:58]} 28. Rc3 {[%clk 0:00:57]}  Rxc3 {[%clk 0:01:55]} 29. Qxc3 {[%clk 0:00:56]}  h4 {[%clk 0:01:52]} 30. Kf2 {[%clk 0:00:49]}  Bc6 {[%clk 0:01:50]} 31. Qb3 {[%clk 0:00:37]}  Ba4 {[%clk 0:01:46]} 32. Qc3 {[%clk 0:00:33]}  Kg7 {[%clk 0:01:44]} 33. Ng4 {[%clk 0:00:27]}  Nf5 {[%clk 0:01:39]} 34. Ne3 {[%clk 0:00:22]}  Ng3 {[%clk 0:01:36]} 35. Nd2 {[%clk 0:00:13]}  Bb5 {[%clk 0:01:34]} 36. Nef1 {[%clk 0:00:13]}  Nh5 {[%clk 0:01:29]} 37. Ne3 {[%clk 0:00:12]}  Nxf4 {[%clk 0:01:27]} 38. Bxb5 {[%clk 0:00:09]}  Qxb5 {[%clk 0:01:27]} 39. Kf3 {[%clk 0:00:07]}  Qe2+ {[%clk 0:01:14]} 40. Kxf4 {[%clk 0:00:07]}  g5# {[%clk 0:01:15]} 0-1


[Site "https://www.chess.com"]

[Event "Titled Tuesday Blitz May 31 Late 2022"]
[White "Swiercz, Dariusz"]
[Black "Vajda, Levente"]
[WhiteFideId "1126881"]
[BlackFideId "1203975"]
[WhiteElo "2627"]
[BlackElo "2573"]
[Result "0-1"]
[Round "04"]
[TimeControl "180+1"]
[Date "2022.05.31"]
[WhiteClock "0:00:06"]
[BlackClock "0:00:13"]

1. d4 {[%clk 0:03:00]}  Nf6 {[%clk 0:02:57]} 2. c4 {[%clk 0:03:01]}  e6 {[%clk 0:02:56]} 3. Nc3 {[%clk 0:03:01]}  d5 {[%clk 0:02:57]} 4. Nf3 {[%clk 0:02:59]}  Be7 {[%clk 0:02:56]} 5. Bg5 {[%clk 0:02:57]}  O-O {[%clk 0:02:56]} 6. e3 {[%clk 0:02:58]}  h6 {[%clk 0:02:56]} 7. Bxf6 {[%clk 0:02:57]}  Bxf6 {[%clk 0:02:56]} 8. Rc1 {[%clk 0:02:57]}  c6 {[%clk 0:02:55]} 9. Bd3 {[%clk 0:02:54]}  Nd7 {[%clk 0:02:55]} 10. O-O {[%clk 0:02:51]}  a6 {[%clk 0:02:54]} 11. Qe2 {[%clk 0:02:47]}  dxc4 {[%clk 0:02:48]} 12. Bxc4 {[%clk 0:02:47]}  b5 {[%clk 0:02:49]} 13. Bd3 {[%clk 0:02:47]}  Bb7 {[%clk 0:02:50]} 14. Ne4 {[%clk 0:02:43]}  Be7 {[%clk 0:02:49]} 15. Bb1 {[%clk 0:02:41]}  Qb6 {[%clk 0:02:39]} 16. h4 {[%clk 0:02:26]}  f5 {[%clk 0:02:34]} 17. Nc3 {[%clk 0:01:39]}  c5 {[%clk 0:02:33]} 18. Rfd1 {[%clk 0:01:39]}  Nf6 {[%clk 0:02:03]} 19. Ne5 {[%clk 0:01:34]}  Rfd8 {[%clk 0:01:46]} 20. Ng6 {[%clk 0:01:32]}  Bd6 {[%clk 0:01:46]} 21. a3 {[%clk 0:01:14]}  b4 {[%clk 0:01:43]} 22. axb4 {[%clk 0:01:12]}  cxb4 {[%clk 0:01:43]} 23. Na4 {[%clk 0:01:11]}  Qb5 {[%clk 0:01:43]} 24. Qxb5 {[%clk 0:01:07]}  axb5 {[%clk 0:01:43]} 25. Nc5 {[%clk 0:01:08]}  Bd5 {[%clk 0:01:44]} 26. Bd3 {[%clk 0:01:01]}  Ra2 {[%clk 0:01:40]} 27. b3 {[%clk 0:00:39]}  Rb8 {[%clk 0:01:36]} 28. Nf4 {[%clk 0:00:34]}  Ra3 {[%clk 0:01:30]} 29. Nxd5 {[%clk 0:00:31]}  Nxd5 {[%clk 0:01:29]} 30. Nxe6 {[%clk 0:00:30]}  Nc3 {[%clk 0:01:19]} 31. Re1 {[%clk 0:00:30]}  Rxb3 {[%clk 0:01:12]} 32. Bxf5 {[%clk 0:00:30]}  Rb2 {[%clk 0:01:12]} 33. Nc5 {[%clk 0:00:29]}  Ne2+ {[%clk 0:01:04]} 34. Rxe2 {[%clk 0:00:28]}  Rxe2 {[%clk 0:01:05]} 35. Rb1 {[%clk 0:00:26]}  Kh8 {[%clk 0:01:00]} 36. Bg4 {[%clk 0:00:20]}  Rc2 {[%clk 0:00:59]} 37. Na6 {[%clk 0:00:10]}  Rf8 {[%clk 0:00:54]} 38. Bf3 {[%clk 0:00:09]}  Rfc8 {[%clk 0:00:47]} 39. Nc5 {[%clk 0:00:09]}  Bxc5 {[%clk 0:00:40]} 40. dxc5 {[%clk 0:00:10]}  R8xc5 {[%clk 0:00:41]} 41. Rxb4 {[%clk 0:00:10]}  R2c4 {[%clk 0:00:41]} 42. Rb3 {[%clk 0:00:08]}  Rxh4 {[%clk 0:00:37]} 43. g3 {[%clk 0:00:08]}  Ra4 {[%clk 0:00:35]} 44. Kg2 {[%clk 0:00:08]}  Ra2 {[%clk 0:00:35]} 45. Be4 {[%clk 0:00:07]}  g5 {[%clk 0:00:31]} 46. Bd3 {[%clk 0:00:05]}  Ra5 {[%clk 0:00:29]} 47. Rb4 {[%clk 0:00:05]}  Kg7 {[%clk 0:00:29]} 48. Bf1 {[%clk 0:00:05]}  Kf6 {[%clk 0:00:27]} 49. Kf3 {[%clk 0:00:05]}  Ke5 {[%clk 0:00:25]} 50. Bd3 {[%clk 0:00:04]}  h5 {[%clk 0:00:24]} 51. Kg2 {[%clk 0:00:04]}  g4 {[%clk 0:00:24]} 52. Rf4 {[%clk 0:00:03]}  Kd6 {[%clk 0:00:21]} 53. Rf6+ {[%clk 0:00:03]}  Kc7 {[%clk 0:00:22]} 54. Rf7+ {[%clk 0:00:04]}  Kb6 {[%clk 0:00:22]} 55. Rf8 {[%clk 0:00:03]}  Rc7 {[%clk 0:00:18]} 56. Be4 {[%clk 0:00:03]}  b4 {[%clk 0:00:18]} 57. Rb8+ {[%clk 0:00:03]}  Kc5 {[%clk 0:00:18]} 58. Rh8 {[%clk 0:00:02]}  Kc4 {[%clk 0:00:17]} 59. Rd8 {[%clk 0:00:02]}  Kc3 {[%clk 0:00:16]} 60. Rd3+ {[%clk 0:00:02]}  Kb2 {[%clk 0:00:16]} 61. Bd5 {[%clk 0:00:02]}  Rc3 {[%clk 0:00:15]} 62. Rd2+ {[%clk 0:00:03]}  Kc1 {[%clk 0:00:15]} 63. Rd4 {[%clk 0:00:02]}  b3 {[%clk 0:00:15]} 64. Be4 {[%clk 0:00:02]}  b2 {[%clk 0:00:13]} 65. Rb4 {[%clk 0:00:03]}  Ra1 {[%clk 0:00:08]} 66. Bg6 {[%clk 0:00:02]}  b1=Q {[%clk 0:00:08]} 67. Bxb1 {[%clk 0:00:02]}  Rxb1 {[%clk 0:00:09]} 68. Rd4 {[%clk 0:00:02]}  Rcb3 {[%clk 0:00:08]} 69. Rd5 {[%clk 0:00:02]}  Rb5 {[%clk 0:00:09]} 70. Rd4 {[%clk 0:00:03]}  Kc2 {[%clk 0:00:09]} 71. Rc4+ {[%clk 0:00:03]}  Kd3 {[%clk 0:00:09]} 72. Rd4+ {[%clk 0:00:04]}  Ke2 {[%clk 0:00:10]} 73. Rd8 {[%clk 0:00:05]}  R1b2 {[%clk 0:00:10]} 74. e4 {[%clk 0:00:05]}  Ke1 {[%clk 0:00:10]} 75. Rf8 {[%clk 0:00:05]}  Re5 {[%clk 0:00:10]} 76. Rf4 {[%clk 0:00:05]}  Re2 {[%clk 0:00:10]} 77. Kg1 {[%clk 0:00:05]}  R2xe4 {[%clk 0:00:11]} 78. Rf8 {[%clk 0:00:06]}  Re2 {[%clk 0:00:11]} 79. Rf7 {[%clk 0:00:06]}  Rd5 {[%clk 0:00:11]} 80. Kg2 {[%clk 0:00:06]}  Kd1 {[%clk 0:00:11]} 81. Kg1 {[%clk 0:00:06]}  Kc1 {[%clk 0:00:11]} 82. Kg2 {[%clk 0:00:07]}  Kb1 {[%clk 0:00:11]} 83. Kg1 {[%clk 0:00:06]}  Rd1+ {[%clk 0:00:11]} 84. Kg2 {[%clk 0:00:07]}  Ree1 {[%clk 0:00:12]} 85. Rb7+ {[%clk 0:00:06]}  Kc2 {[%clk 0:00:11]} 86. Rc7+ {[%clk 0:00:06]}  Kb3 {[%clk 0:00:12]} 87. Rb7+ {[%clk 0:00:06]}  Kc4 {[%clk 0:00:12]} 88. Rc7+ {[%clk 0:00:07]}  Kb5 {[%clk 0:00:13]} 89. f4 {[%clk 0:00:06]}  Rd2# {[%clk 0:00:13]} 0-1


[Site "https://www.chess.com"]

[Event "Titled Tuesday Blitz May 31 Late 2022"]
[White "Zeynalli, Rashad"]
[Black "Darini, Pouria"]
[WhiteFideId "13403320"]
[BlackFideId "12502200"]
[WhiteElo "2125"]
[BlackElo "2483"]
[Result "0-1"]
[Round "04"]
[TimeControl "180+1"]
[Date "2022.05.31"]
[WhiteClock "0:01:13"]
[BlackClock "0:00:34"]

1. d4 {[%clk 0:03:00]}  d5 {[%clk 0:02:57]} 2. Bf4 {[%clk 0:03:00]}  c5 {[%clk 0:02:55]} 3. e3 {[%clk 0:03:00]}  Nc6 {[%clk 0:02:54]} 4. c3 {[%clk 0:03:00]}  Qb6 {[%clk 0:02:48]} 5. Qb3 {[%clk 0:02:59]}  c4 {[%clk 0:02:47]} 6. Qc2 {[%clk 0:02:57]}  Nf6 {[%clk 0:02:34]} 7. Nd2 {[%clk 0:02:56]}  g6 {[%clk 0:02:32]} 8. e4 {[%clk 0:02:55]}  Nxe4 {[%clk 0:02:30]} 9. Nxe4 {[%clk 0:02:53]}  dxe4 {[%clk 0:02:31]} 10. Bxc4 {[%clk 0:02:52]}  Bf5 {[%clk 0:02:29]} 11. Qb3 {[%clk 0:02:47]}  Qxb3 {[%clk 0:02:28]} 12. axb3 {[%clk 0:02:48]}  Bg7 {[%clk 0:02:25]} 13. Ne2 {[%clk 0:02:41]}  e5 {[%clk 0:02:17]} 14. dxe5 {[%clk 0:02:38]}  Nxe5 {[%clk 0:02:17]} 15. Bb5+ {[%clk 0:02:38]}  Bd7 {[%clk 0:02:17]} 16. Bxd7+ {[%clk 0:02:37]}  Kxd7 {[%clk 0:02:18]} 17. Bxe5 {[%clk 0:02:36]}  Bxe5 {[%clk 0:02:18]} 18. O-O-O+ {[%clk 0:02:34]}  Kc7 {[%clk 0:02:09]} 19. Rd5 {[%clk 0:02:29]}  Rhe8 {[%clk 0:02:06]} 20. Rhd1 {[%clk 0:02:25]}  Re7 {[%clk 0:01:26]} 21. Rc5+ {[%clk 0:02:24]}  Kb6 {[%clk 0:01:27]} 22. b4 {[%clk 0:02:23]}  Rae8 {[%clk 0:01:21]} 23. Kc2 {[%clk 0:02:20]}  a6 {[%clk 0:01:21]} 24. Nc1 {[%clk 0:02:15]}  e3 {[%clk 0:01:10]} 25. fxe3 {[%clk 0:02:11]}  Bxh2 {[%clk 0:01:10]} 26. Rh1 {[%clk 0:02:11]}  Bd6 {[%clk 0:01:11]} 27. Rd5 {[%clk 0:02:10]}  Kc6 {[%clk 0:01:11]} 28. Rd3 {[%clk 0:02:01]}  h5 {[%clk 0:01:05]} 29. Rhd1 {[%clk 0:01:50]}  Bc7 {[%clk 0:00:58]} 30. Kd2 {[%clk 0:01:42]}  Bb6 {[%clk 0:00:49]} 31. Re1 {[%clk 0:01:41]}  f5 {[%clk 0:00:48]} 32. c4 {[%clk 0:01:27]}  Re4 {[%clk 0:00:35]} 33. c5 {[%clk 0:01:19]}  Bc7 {[%clk 0:00:35]} 34. Rd4 {[%clk 0:01:15]}  Rxd4+ {[%clk 0:00:33]} 35. exd4 {[%clk 0:01:14]}  Bf4+ {[%clk 0:00:33]} 36. Kd1 {[%clk 0:01:12]}  Rxe1+ {[%clk 0:00:34]} 37. Kxe1 {[%clk 0:01:13]}  Bxc1 {[%clk 0:00:34]} 0-1


[Site "https://www.chess.com"]

[Event "Titled Tuesday Blitz May 31 Late 2022"]
[White "Zhigalko, Sergei"]
[Black "Riehle, Marco"]
[WhiteFideId "13502956"]
[BlackFideId "12904392"]
[WhiteElo "2662"]
[BlackElo "2462"]
[Result "1/2-1/2"]
[Round "04"]
[TimeControl "180+1"]
[Date "2022.05.31"]
[WhiteClock "0:00:02"]
[BlackClock "0:01:00"]

1. e4 {[%clk 0:03:00]}  e5 {[%clk 0:03:00]} 2. Nf3 {[%clk 0:03:01]}  Nf6 {[%clk 0:03:00]} 3. Nxe5 {[%clk 0:02:58]}  Nxe4 {[%clk 0:03:00]} 4. Qe2 {[%clk 0:02:57]}  Qe7 {[%clk 0:03:00]} 5. Qxe4 {[%clk 0:02:56]}  d6 {[%clk 0:03:00]} 6. d4 {[%clk 0:02:55]}  dxe5 {[%clk 0:03:00]} 7. dxe5 {[%clk 0:02:56]}  Nc6 {[%clk 0:03:00]} 8. Nc3 {[%clk 0:02:55]}  Qxe5 {[%clk 0:03:00]} 9. Qxe5+ {[%clk 0:02:56]}  Nxe5 {[%clk 0:03:01]} 10. Bf4 {[%clk 0:02:56]}  f6 {[%clk 0:03:01]} 11. O-O-O {[%clk 0:02:47]}  Bd7 {[%clk 0:03:00]} 12. Nb5 {[%clk 0:02:29]}  O-O-O {[%clk 0:02:59]} 13. Nxa7+ {[%clk 0:02:15]}  Kb8 {[%clk 0:03:00]} 14. Nb5 {[%clk 0:01:22]}  Bc5 {[%clk 0:02:58]} 15. Bg3 {[%clk 0:01:20]}  g5 {[%clk 0:02:55]} 16. Nc3 {[%clk 0:00:59]}  Bc6 {[%clk 0:02:55]} 17. Rxd8+ {[%clk 0:00:23]}  Rxd8 {[%clk 0:02:54]} 18. h4 {[%clk 0:00:16]}  g4 {[%clk 0:02:53]} 19. Rg1 {[%clk 0:00:10]}  h5 {[%clk 0:02:48]} 20. Bb5 {[%clk 0:00:07]}  Ng6 {[%clk 0:02:28]} 21. Bxc6 {[%clk 0:00:07]}  bxc6 {[%clk 0:02:29]} 22. Ne4 {[%clk 0:00:03]}  Be7 {[%clk 0:02:30]} 23. f4 {[%clk 0:00:02]}  Rd4 {[%clk 0:02:22]} 24. f5 {[%clk 0:00:02]}  Nxh4 {[%clk 0:02:12]} 25. Bxh4 {[%clk 0:00:03]}  Rxe4 {[%clk 0:02:12]} 26. Re1 {[%clk 0:00:04]}  Rxe1+ {[%clk 0:02:09]} 27. Bxe1 {[%clk 0:00:04]}  Kc8 {[%clk 0:01:56]} 28. Kd2 {[%clk 0:00:05]}  Kd7 {[%clk 0:01:54]} 29. Kd3 {[%clk 0:00:05]}  Kd6 {[%clk 0:01:54]} 30. Ke4 {[%clk 0:00:04]}  c5 {[%clk 0:01:54]} 31. c4 {[%clk 0:00:04]}  Kc6 {[%clk 0:01:55]} 32. b3 {[%clk 0:00:04]}  Bd6 {[%clk 0:01:53]} 33. Bc3 {[%clk 0:00:03]}  Be7 {[%clk 0:01:53]} 34. Bb2 {[%clk 0:00:03]}  Bd8 {[%clk 0:01:53]} 35. Bc1 {[%clk 0:00:04]}  Be7 {[%clk 0:01:53]} 36. Bf4 {[%clk 0:00:04]}  Bd8 {[%clk 0:01:50]} 37. Ke3 {[%clk 0:00:04]}  Be7 {[%clk 0:01:43]} 38. Kf2 {[%clk 0:00:04]}  h4 {[%clk 0:01:44]} 39. Ke3 {[%clk 0:00:03]}  Bf8 {[%clk 0:01:42]} 40. Ke4 {[%clk 0:00:03]}  Kb6 {[%clk 0:01:28]} 41. Bh2 {[%clk 0:00:01]}  Be7 {[%clk 0:01:27]} 42. Bf4 {[%clk 0:00:02]}  Bf8 {[%clk 0:01:27]} 43. Ke3 {[%clk 0:00:02]}  Kc6 {[%clk 0:01:26]} 44. Kd3 {[%clk 0:00:02]}  Kb6 {[%clk 0:01:22]} 45. Ke4 {[%clk 0:00:02]}  Kc6 {[%clk 0:01:22]} 46. Bh2 {[%clk 0:00:03]}  Kb6 {[%clk 0:01:21]} 47. Bg1 {[%clk 0:00:02]}  Bd6 {[%clk 0:01:18]} 48. Be3 {[%clk 0:00:03]}  Kc6 {[%clk 0:01:15]} 49. Bd2 {[%clk 0:00:03]}  Be5 {[%clk 0:01:11]} 50. Be1 {[%clk 0:00:03]}  h3 {[%clk 0:01:09]} 51. gxh3 {[%clk 0:00:04]}  gxh3 {[%clk 0:01:09]} 52. Kf3 {[%clk 0:00:05]}  Kb6 {[%clk 0:01:06]} 53. Bf2 {[%clk 0:00:05]}  Kc6 {[%clk 0:01:05]} 54. Be3 {[%clk 0:00:04]}  Bd6 {[%clk 0:01:01]} 55. Bf2 {[%clk 0:00:03]}  Be5 {[%clk 0:01:02]} 56. Be3 {[%clk 0:00:02]}  Kd6 {[%clk 0:01:00]} 57. Bf2 {[%clk 0:00:02]}  Kc6 {[%clk 0:01:00]} 1/2-1/2


[Site "https://www.chess.com"]